Workbook

Sheet Reisekostenabrechnung - 2015 (hidden)
A1: Reisekostenabrechnung 2016 (Inland)
A3: Reisekostenabrechnung | H3: von | K3: Name:
H4: bis
A5: Ich bin Arbeitnehmer? | I5: ja
A7: Reisezeiten | I7: Reiseziel | J7: Reisezweck | L7: Verpflegung | M7: Fahrtkosten | O7: Übernachtung | Q7: Sonstiges
A8: Reisetag | B8: Beginn | C8: Ende | D8: Über-nachtung | E8: Wurden bestimmte Mahlzeiten gestellt bzw. separat abgerechnet? | H8: Dauer | I8: Reiseziel | J8: Reisezweck | K8: Verpfle-gungspau-schale | L8: Pauschale | M8: gefahrene Strecke (gesamt) | N8: Fahrt-kosten (PKW) | O8: Pauschal | P8: Nachweis | Q8: lt. Anlage (Bsp.: Parkkosten, Autobahnge-bühren)
A9: Datum | B9: Zeit | E9: Frühstück | F9: Mittag | G9: Abendessen | H9: Std. | I9: Ort | J9: Erläuterungen | K9: EUR | L9: =+K9 -> EUR | M9: km | N9: EUR | O9: EUR | P9: EUR | Q9: EUR
A10: 2016-08-23 | B10: 07:00:00 | C10: 1 | H10: =C10-B10 -> 0.7083333333 | I10: Berlin | K10: =IF($I$5="ja",IF(H10<TIME(8,0,0),0,IF(H10<TIME(23,59,59),12,24)),"") -> 12 | L10: =+K10+Kürzung!F5 -> 12 | N10: =M10*0.3 -> 0 | O10: =IF(AND($I$5="ja",D10="ja"),IF(P10="",20,""),"") -> 
A11: 2016-08-24 | B11: 00:00:00 | C11: 1 | D11: ja | E11: ja | H11: 1 | I11: Berlin | K11: =IF($I$5="ja",IF(H11<TIME(8,0,0),0,IF(H11<TIME(23,59,59),12,24)),"") -> 24 | L11: =+K11+Kürzung!F6 -> 24 | N11: 0 | O11: =IF(AND($I$5="ja",D11="ja"),IF(P11="",20,""),"") -> 20
A12: 2016-08-25 | B12: 00:00:00 | C12: 1 | D12: ja | E12: ja | H12: 1 | I12: Berlin | K12: 24 | L12: =+K12+Kürzung!F7 -> 24 | N12: 0 | O12: 20
A13: 2016-08-26 | B13: 00:00:00 | C13: 0.2916666667 | D13: ja | E13: ja | H13: 0.2916666667 | I13: Berlin | K13: 0 | L13: =+K13+Kürzung!F8 -> 0 | N13: 0 | O13: 20
H14: 0 | K14: 0 | L14: =+K14+Kürzung!F9 -> 0 | N14: 0
H15: 0 | K15: 0 | L15: =+K15+Kürzung!F10 ->  | N15: 0
H16: 0 | K16: 0 | L16: =+K16+Kürzung!F11 -> 0 | N16: 0
H17: 0 | K17: 0 | L17: =+K17+Kürzung!F12 -> 0 | N17: 0
H18: 0 | K18: 0 | L18: =+K18+Kürzung!F13 -> 0 | N18: 0
H19: 0 | K19: 0 | L19: =+K19+Kürzung!F14 -> 0 | N19: 0
H20: 0 | K20: 0 | L20: =+K20+Kürzung!F15 -> 0 | N20: 0
H21: 0 | K21: 0 | L21: =+K21+Kürzung!F16 -> 0 | N21: 0
H22: 0 | K22: 0 | L22: =+K22+Kürzung!F17 ->  | N22: 0
H23: 0 | K23: 0 | L23: =+K23+Kürzung!F18 ->  | N23: 0
H24: 0 | K24: 0 | L24: =+K24+Kürzung!F19 ->  | N24: 0
H25: 0 | K25: 0 | L25: =+K25+Kürzung!F20 ->  | N25: 0
H26: 0 | K26: 0 | L26: =+K26+Kürzung!F21 ->  | N26: 0
H27: 0 | K27: 0 | L27: =+K27+Kürzung!F22 ->  | N27: 0
H28: 0 | K28: 0 | L28: =+K28+Kürzung!F23 ->  | N28: 0
H29: 0 | K29: 0 | L29: =+K29+Kürzung!F24 ->  | N29: 0
A30: Summe | K30: =SUM(K10:K29) -> 60 | L30: =SUM(L10:L29) ->  | N30: =SUM(N10:N29) -> 0 | O30: =SUM(O10:O29) -> 60 | P30: =SUM(P10:P29) -> 0 | Q30: =SUM(Q10:Q29) -> 0
A32: Verpflegungsgeld | D32: =K30 -> 60 | J32: Fahrtkosten Gesamt | M32: =N30 -> 0
A34: Übernachtungskosten | D34: =O30+P30 -> 60 | J34: GESAMTSUMME | M34: =K30+N30+O30+P30+Q30 -> 120

Sheet Reisekostenabrechnung
B1: Reisekostenabrechnung (Inland) 2020
A3: ="--> blaue Felder = Eingabefelder" -> --> blaue Felder = Eingabefelder | B3: für den Monat / Zeitraum | J3: Name:
A5: ="--> Roter Rahmen = Pflichteingabe" -> --> Roter Rahmen = Pflichteingabe | B5: Ich bin Arbeitnehmer?
B7: Ich erstelle die Abrechnung für meine Einkommensteuererklärung
A9: Bearbeitungshinweise | B9: Reisedaten | D9: Reisezeiten | I9: Übernachtung | Q9: Fahrt-kosten
B10: Reiseziel | C10: Reisezweck | D10: Reisetag | E10: Beginn | F10: Ende | G10: Dauer | H10: Verpflegungs-pauschale | I10: Übernachtung | K10: Wurden bestimmte Mahlzeiten gestellt bzw. separat abgerechnet? | N10: Verpflegungspauschale abzgl. F, M, A | O10: Nachweis (z. B. Hotelrechnung lt. Anlage) | P10: Pauschal (20,- EUR nur ohne Nachweis) | Q10: gefahrene Strecke (gesamt)
B11: Ort | C11: Erläuterungen | D11: Datum | E11: Zeit | G11: Std. | H11: EUR | J11: Hotel (Name) | K11: Frühstück | L11: Mittagessen | M11: Abendessen | N11: EUR | O11: EUR | P11: EUR | Q11: km | S11: Frühstück | T11: Mittagessen | U11: Abendessen | V11: Kürzung Gesamt | W11: VMAabzgl. Kürzung | X11: VMA | Y11: Max | Z11: Erstattung
G12: =IF((AND($E$3<>"",ISNUMBER(D12),$J$5<>"",$J$7<>"")),(F12-E12),"") ->  | H12: =IF(AND(ISNUMBER(D12),ISNUMBER(G12)),IF(G12>TIME(23,59,59),data_fill!$D$3,IF(OR(AND(G12>TIME(8,0,0),E12>TIME(0,0,0),F12<TIME(23,59,59)),AND(E12<TIME(0,0,1),F12<TIME(23,59,59),E12<>"",F12<>""),AND(E12>TIME(0,0,0),F12>TIME(23,59,59))),data_fill!$D$2,0)),0) -> 0 | N12: =Z12 -> 0 | P12: =IF(AND($J$5="ja",I12="ja",$J$7="nein"),IF(O12="",20,""),"") ->  | S12: =IF(K12="ja",Kürzung!$B$30,0) -> 0 | T12: =IF(L12="ja",Kürzung!$B$31,0) -> 0 | U12: =IF(M12="ja",Kürzung!$B$32,0) -> 0 | V12: =SUM(S12:U12) -> 0 | W12: =H12-V12 -> 0 | X12: =H12 -> 0 | Y12: =IF(((H12-V12)>0),(H12-V12),X12) -> 0 | Z12: =IF((W12<=0),0,Y12) -> 0 | AA12: =IF(Y12>=0,Y12,0) -> 0 | AB12: =IF(AND(S12=4.8,Z12>=0),S12,0) -> 0 | AC12: =IF(AND(T12=9.6,$Z12>=0),T12,0) -> 0 | AD12: 0 | AE12: =SUM(AB12:AD12) -> 0
G13: =IF((AND($E$3<>"",ISNUMBER(D13),$J$5<>"",$J$7<>"")),(F13-E13),"") ->  | H13: =IF(AND(ISNUMBER(D13),ISNUMBER(G13)),IF(G13>TIME(23,59,59),data_fill!$D$3,IF(OR(AND(G13>TIME(8,0,0),E13>TIME(0,0,0),F13<TIME(23,59,59)),AND(E13<TIME(0,0,1),F13<TIME(23,59,59),E13<>"",F13<>""),AND(E13>TIME(0,0,0),F13>TIME(23,59,59))),data_fill!$D$2,0)),0) -> 0 | N13: =Z13 -> 0 | P13: =IF(AND($J$5="ja",I13="ja",$J$7="nein"),IF(O13="",20,""),"") ->  | S13: =IF(K13="ja",Kürzung!$B$30,0) -> 0 | T13: =IF(L13="ja",Kürzung!$B$31,0) -> 0 | U13: =IF(M13="ja",Kürzung!$B$32,0) -> 0 | V13: =SUM(S13:U13) -> 0 | W13: =H13-V13 -> 0 | X13: =H13 -> 0 | Y13: =IF(((H13-V13)>0),(H13-V13),X13) -> 0 | Z13: =IF((W13<=0),0,Y13) -> 0 | AA13: =IF(Y13>=0,Y13,0) -> 0 | AB13: =IF(AND(S13=4.8,Z13>=0),S13,0) -> 0 | AC13: 0 | AD13: 0 | AE13: =SUM(AB13:AD13) -> 0
H14: =IF(AND(ISNUMBER(D14),ISNUMBER(G14)),IF(G14>TIME(23,59,59),data_fill!$D$3,IF(OR(AND(G14>TIME(8,0,0),E14>TIME(0,0,0),F14<TIME(23,59,59)),AND(E14<TIME(0,0,1),F14<TIME(23,59,59),E14<>"",F14<>""),AND(E14>TIME(0,0,0),F14>TIME(23,59,59))),data_fill!$D$2,0)),0) -> 0 | N14: 0 | S14: =IF(K14="ja",Kürzung!$B$30,0) -> 0 | T14: =IF(L14="ja",Kürzung!$B$31,0) -> 0 | U14: =IF(M14="ja",Kürzung!$B$32,0) -> 0 | V14: =SUM(S14:U14) -> 0 | W14: =H14-V14 -> 0 | X14: =H14 -> 0 | Y14: =IF(((H14-V14)>0),(H14-V14),X14) -> 0 | Z14: =IF((W14<=0),0,Y14) -> 0 | AA14: =IF(Y14>=0,Y14,0) -> 0 | AB14: =IF(AND(S14=4.8,Z14>=0),S14,0) -> 0 | AC14: 0 | AD14: 0 | AE14: 0
H15: =IF(AND(ISNUMBER(D15),ISNUMBER(G15)),IF(G15>TIME(23,59,59),data_fill!$D$3,IF(OR(AND(G15>TIME(8,0,0),E15>TIME(0,0,0),F15<TIME(23,59,59)),AND(E15<TIME(0,0,1),F15<TIME(23,59,59),E15<>"",F15<>""),AND(E15>TIME(0,0,0),F15>TIME(23,59,59))),data_fill!$D$2,0)),0) -> 0 | N15: 0 | S15: =IF(K15="ja",Kürzung!$B$30,0) -> 0 | T15: =IF(L15="ja",Kürzung!$B$31,0) -> 0 | U15: =IF(M15="ja",Kürzung!$B$32,0) -> 0 | V15: =SUM(S15:U15) -> 0 | W15: =H15-V15 -> 0 | X15: =H15 -> 0 | Y15: =IF(((H15-V15)>0),(H15-V15),X15) -> 0 | Z15: =IF((W15<=0),0,Y15) -> 0 | AA15: =IF(Y15>=0,Y15,0) -> 0 | AB15: =IF(AND(S15=4.8,Z15>=0),S15,0) -> 0 | AC15: =IF(AND(T15=9.6,$Z15>=0),T15,0) -> 0 | AD15: =IF(AND(U15=9.6,$Z15>=0),U15,0) -> 0 | AE15: 0
H16: =IF(AND(ISNUMBER(D16),ISNUMBER(G16)),IF(G16>TIME(23,59,59),data_fill!$D$3,IF(OR(AND(G16>TIME(8,0,0),E16>TIME(0,0,0),F16<TIME(23,59,59)),AND(E16<TIME(0,0,1),F16<TIME(23,59,59),E16<>"",F16<>""),AND(E16>TIME(0,0,0),F16>TIME(23,59,59))),data_fill!$D$2,0)),0) -> 0 | N16: 0 | S16: =IF(K16="ja",Kürzung!$B$30,0) -> 0 | T16: =IF(L16="ja",Kürzung!$B$31,0) -> 0 | U16: =IF(M16="ja",Kürzung!$B$32,0) -> 0 | V16: 0 | W16: =H16-V16 -> 0 | X16: =H16 -> 0 | Y16: =IF(((H16-V16)>0),(H16-V16),X16) -> 0 | Z16: 0 | AA16: =IF(Y16>=0,Y16,0) -> 0 | AB16: 0 | AC16: 0 | AD16: 0 | AE16: 0
H17: =IF(AND(ISNUMBER(D17),ISNUMBER(G17)),IF(G17>TIME(23,59,59),data_fill!$D$3,IF(OR(AND(G17>TIME(8,0,0),E17>TIME(0,0,0),F17<TIME(23,59,59)),AND(E17<TIME(0,0,1),F17<TIME(23,59,59),E17<>"",F17<>""),AND(E17>TIME(0,0,0),F17>TIME(23,59,59))),data_fill!$D$2,0)),0) -> 0 | N17: 0 | S17: =IF(K17="ja",Kürzung!$B$30,0) -> 0 | T17: =IF(L17="ja",Kürzung!$B$31,0) -> 0 | U17: =IF(M17="ja",Kürzung!$B$32,0) -> 0 | V17: 0 | W17: 0 | X17: 0 | Y17: 0 | Z17: 0 | AA17: 0 | AB17: 0 | AC17: 0 | AD17: 0 | AE17: 0
H18: =IF(AND(ISNUMBER(D18),ISNUMBER(G18)),IF(G18>TIME(23,59,59),data_fill!$D$3,IF(OR(AND(G18>TIME(8,0,0),E18>TIME(0,0,0),F18<TIME(23,59,59)),AND(E18<TIME(0,0,1),F18<TIME(23,59,59),E18<>"",F18<>""),AND(E18>TIME(0,0,0),F18>TIME(23,59,59))),data_fill!$D$2,0)),0) -> 0 | N18: 0 | S18: =IF(K18="ja",Kürzung!$B$30,0) -> 0 | T18: =IF(L18="ja",Kürzung!$B$31,0) -> 0 | U18: =IF(M18="ja",Kürzung!$B$32,0) -> 0 | V18: 0 | W18: 0 | X18: 0 | Y18: 0 | Z18: 0 | AA18: 0 | AB18: 0 | AC18: 0 | AD18: 0 | AE18: 0
H19: =IF(AND(ISNUMBER(D19),ISNUMBER(G19)),IF(G19>TIME(23,59,59),data_fill!$D$3,IF(OR(AND(G19>TIME(8,0,0),E19>TIME(0,0,0),F19<TIME(23,59,59)),AND(E19<TIME(0,0,1),F19<TIME(23,59,59),E19<>"",F19<>""),AND(E19>TIME(0,0,0),F19>TIME(23,59,59))),data_fill!$D$2,0)),0) -> 0 | N19: 0 | S19: =IF(K19="ja",Kürzung!$B$30,0) -> 0 | T19: =IF(L19="ja",Kürzung!$B$31,0) -> 0 | U19: =IF(M19="ja",Kürzung!$B$32,0) -> 0 | V19: 0 | W19: 0 | X19: 0 | Y19: 0 | Z19: 0 | AA19: 0 | AB19: 0 | AC19: 0 | AD19: 0 | AE19: 0
H20: =IF(AND(ISNUMBER(D20),ISNUMBER(G20)),IF(G20>TIME(23,59,59),data_fill!$D$3,IF(OR(AND(G20>TIME(8,0,0),E20>TIME(0,0,0),F20<TIME(23,59,59)),AND(E20<TIME(0,0,1),F20<TIME(23,59,59),E20<>"",F20<>""),AND(E20>TIME(0,0,0),F20>TIME(23,59,59))),data_fill!$D$2,0)),0) -> 0 | N20: 0 | S20: =IF(K20="ja",Kürzung!$B$30,0) -> 0 | T20: =IF(L20="ja",Kürzung!$B$31,0) -> 0 | U20: =IF(M20="ja",Kürzung!$B$32,0) -> 0 | V20: 0 | W20: 0 | X20: 0 | Y20: 0 | Z20: 0 | AA20: 0 | AB20: 0 | AC20: 0 | AD20: 0 | AE20: 0
H21: =IF(AND(ISNUMBER(D21),ISNUMBER(G21)),IF(G21>TIME(23,59,59),data_fill!$D$3,IF(OR(AND(G21>TIME(8,0,0),E21>TIME(0,0,0),F21<TIME(23,59,59)),AND(E21<TIME(0,0,1),F21<TIME(23,59,59),E21<>"",F21<>""),AND(E21>TIME(0,0,0),F21>TIME(23,59,59))),data_fill!$D$2,0)),0) -> 0 | N21: 0 | S21: =IF(K21="ja",Kürzung!$B$30,0) -> 0 | T21: =IF(L21="ja",Kürzung!$B$31,0) -> 0 | U21: =IF(M21="ja",Kürzung!$B$32,0) -> 0 | V21: 0 | W21: 0 | X21: 0 | Y21: 0 | Z21: 0 | AA21: 0 | AB21: 0 | AC21: 0 | AD21: 0 | AE21: 0
H22: =IF(AND(ISNUMBER(D22),ISNUMBER(G22)),IF(G22>TIME(23,59,59),data_fill!$D$3,IF(OR(AND(G22>TIME(8,0,0),E22>TIME(0,0,0),F22<TIME(23,59,59)),AND(E22<TIME(0,0,1),F22<TIME(23,59,59),E22<>"",F22<>""),AND(E22>TIME(0,0,0),F22>TIME(23,59,59))),data_fill!$D$2,0)),0) -> 0 | N22: 0 | S22: =IF(K22="ja",Kürzung!$B$30,0) -> 0 | T22: =IF(L22="ja",Kürzung!$B$31,0) -> 0 | U22: =IF(M22="ja",Kürzung!$B$32,0) -> 0 | V22: 0 | W22: 0 | X22: 0 | Y22: 0 | Z22: 0 | AA22: 0 | AB22: 0 | AC22: 0 | AD22: 0 | AE22: 0
H23: =IF(AND(ISNUMBER(D23),ISNUMBER(G23)),IF(G23>TIME(23,59,59),data_fill!$D$3,IF(OR(AND(G23>TIME(8,0,0),E23>TIME(0,0,0),F23<TIME(23,59,59)),AND(E23<TIME(0,0,1),F23<TIME(23,59,59),E23<>"",F23<>""),AND(E23>TIME(0,0,0),F23>TIME(23,59,59))),data_fill!$D$2,0)),0) -> 0 | N23: 0 | S23: =IF(K23="ja",Kürzung!$B$30,0) -> 0 | T23: =IF(L23="ja",Kürzung!$B$31,0) -> 0 | U23: =IF(M23="ja",Kürzung!$B$32,0) -> 0 | V23: 0 | W23: 0 | X23: 0 | Y23: 0 | Z23: 0 | AA23: 0 | AB23: 0 | AC23: 0 | AD23: 0 | AE23: 0
H24: =IF(AND(ISNUMBER(D24),ISNUMBER(G24)),IF(G24>TIME(23,59,59),data_fill!$D$3,IF(OR(AND(G24>TIME(8,0,0),E24>TIME(0,0,0),F24<TIME(23,59,59)),AND(E24<TIME(0,0,1),F24<TIME(23,59,59),E24<>"",F24<>""),AND(E24>TIME(0,0,0),F24>TIME(23,59,59))),data_fill!$D$2,0)),0) -> 0 | N24: 0 | S24: =IF(K24="ja",Kürzung!$B$30,0) -> 0 | T24: =IF(L24="ja",Kürzung!$B$31,0) -> 0 | U24: =IF(M24="ja",Kürzung!$B$32,0) -> 0 | V24: =SUM(S24:U24) -> 0 | W24: =H24-V24 -> 0 | X24: =H24 -> 0 | Y24: =IF(((H24-V24)>0),(H24-V24),0) -> 0 | Z24: =IF((W24<=0),0,Y24) -> 0 | AA24: =IF(Y24>=0,Y24,0) -> 0 | AB24: =IF(AND(S24=4.8,Z24>=0),S24,0) -> 0 | AC24: =IF(AND(T24=9.6,$Z24>=0),T24,0) -> 0 | AD24: =IF(AND(U24=9.6,$Z24>=0),U24,0) -> 0 | AE24: 0
H25: =IF(AND(ISNUMBER(D25),ISNUMBER(G25)),IF(G25>TIME(23,59,59),data_fill!$D$3,IF(OR(AND(G25>TIME(8,0,0),E25>TIME(0,0,0),F25<TIME(23,59,59)),AND(E25<TIME(0,0,1),F25<TIME(23,59,59),E25<>"",F25<>""),AND(E25>TIME(0,0,0),F25>TIME(23,59,59))),data_fill!$D$2,0)),0) -> 0 | N25: 0 | S25: =IF(K25="ja",Kürzung!$B$30,0) -> 0 | T25: =IF(L25="ja",Kürzung!$B$31,0) -> 0 | U25: =IF(M25="ja",Kürzung!$B$32,0) -> 0 | V25: =SUM(S25:U25) -> 0 | W25: =H25-V25 -> 0 | X25: =H25 -> 0 | Y25: =IF(((H25-V25)>0),(H25-V25),0) -> 0 | Z25: =IF((W25<=0),0,Y25) -> 0 | AA25: =IF(Y25>=0,Y25,0) -> 0 | AB25: =IF(AND(S25=4.8,Z25>=0),S25,0) -> 0 | AC25: =IF(AND(T25=9.6,$Z25>=0),T25,0) -> 0 | AD25: =IF(AND(U25=9.6,$Z25>=0),U25,0) -> 0 | AE25: 0
B26: Summe | N26: =IF((AND($E$3<>"",$J$5<>"",$J$7<>"")),SUM(N12:N25),0) -> 0 | O26: =IF((AND($E$3<>"",$J$5<>"",$J$7<>"")),SUM(O12:O25),0) -> 0 | P26: =IF((AND($E$3<>"",$J$5<>"",$J$7<>"")),SUM(P12:P25),0) -> 0 | Q26: =IF((AND($E$3<>"",$J$5<>"",$J$7<>"")),SUM(Q12:Q25),0) -> 0 | Z26: =SUM(Z12:Z25) -> 0 | AA26: =IF(Y26>=0,Y26,0) -> 0 | AB26: =(SUM(AB12:AB25))/Kürzung!$B$30 -> 0 | AC26: =(SUM(AC12:AC25))/Kürzung!$B$31 -> 0 | AD26: =(SUM(AD12:AD25))/Kürzung!$B$32 -> 0
B28: Auszahlungen
B29: Verpflegungsmehraufwendungen abzgl. Anzurechnender, gestellter Mahlzeiten | M29: =Z26 -> 0
B31: Übernachtungskosten | M31: =SUM(J32:J33) -> 0
C32: Hotel | J32: =O26 -> 0
C33: Pauschal | J33: =P26 -> 0
B35: Fahrtkosten (Pkw) | M35: =$H$37*$D$37 -> 0
C37: Summe km: | D37: =$Q$26 -> 0 | F37: pauschal pro Kilometer: | H37: =Kürzung!$B$35 -> 0.3
B39: sonstige Kosten lt. Nachweis (z. B. Parkkosten, Autobahngebühren)
B41: Auszahlung der Reisekosten für | E41: =IF((($E$3)="Bitte auswählen!")," ",$E$3) -> 0 | M41: =SUM(M29+M31+M35+M39) -> 0

Sheet data_fill (hidden)
A1: Pauschalen
A2: Ab 8 Stunden | D2: 14
A3: Abwesenheit von 24 Stunden | D3: 28
A6: Afghanistan | D6: Afghanistan
A7: Ägypten | D7: Ägypten
A8: Äthiopien | D8: Äthiopien
A9: Äquatorialguinea | D9: Äquatorialguinea
A10: Albanien | D10: Albanien
A11: Algerien | D11: Algerien
A12: Andorra | D12: Andorra
A13: Angola | D13: Angola
A14: Antigua und Barbuda | D14: Antigua und Barbuda
A15: Argentinien | D15: Argentinien
A16: Armenien | D16: Armenien
A17: Aserbaidschan | D17: Aserbaidschan
A18: Australien | D18: Australien
A19: - Canberra | D19: - Canberra
A20: - Sydney | D20: - Sydney
A21: - im Übrigen | D21: - im Übrigen
A22: Bahrain | D22: Bahrain
A23: Bangladesch | D23: Bangladesch
A24: Barbados | D24: Barbados
A25: Belgien | D25: Belgien
A26: Benin | D26: Benin
A27: Bolivien | D27: Bolivien
A28: Bosnien-Herzegowina | D28: Bosnien-Herzegowina
A29: Botsuana | D29: Botsuana
A30: Brasilien | D30: Brasilien
A31: - Brasilia | D31: - Brasilia
A32: - Rio de Janeiro | D32: - Rio de Janeiro
A33: - Sao Paulo | D33: - Sao Paulo
A34: - im Übrigen | D34: - im Übrigen
A35: Brunei (Darussalam) | D35: Brunei (Darussalam)
A36: Bulgarien | D36: Bulgarien
A37: Burkina Faso | D37: Burkina Faso
A38: Burundi | D38: Burundi
A39: Chile | D39: Cabo Verde
A40: China | D40: Chile
A41: - Chengdu | C41: ja | D41: China
A42: - Hongkong | C42: nein | D42: - Chengdu
A43: - Peking | D43: - Hongkong
A44: - Shanghai | D44: - Peking
A45: Costa Rica | D45: - Shanghai
A46: Côte d'Ivoire | D46: Costa Rica
A47: Deutschland | D47: Côte d'Ivoire
A48: Dänemark | D48: Dänemark
A49: Dominica | D49: Deutschland
A50: Dominikanische Republik | D50: Dominica
A51: Dschibuti | D51: Dominikanische Republik
A52: Ecuador | D52: Dschibuti
A53: El Salvador | D53: Ecuador
A54: Eritrea | D54: El Salvador
A55: Estland | D55: Eritrea
A56: Fidschi | D56: Estland
A57: Finnland | D57: Fidschi
A58: Frankreich | D58: Finnland
A59: - Lyon | D59: Frankreich
A60: - Marseille | D60: - Lyon
A61: - Paris *) | D61: - Marseille
A62: - Straßburg | D62: - Paris *)
A63: - im Übrigen | D63: - Straßburg
A64: Gabun | D64: - im Übrigen
A65: Gambia | D65: Gabun
A66: Georgien | D66: Gambia
A67: Ghana | D67: Georgien
A68: Grenada | D68: Ghana
A69: Griechenland | D69: Grenada
A70: - Athen | D70: Griechenland
A71: - im Übrigen | D71: - Athen
A72: Guatemala | D72: - im Übrigen
A73: Guinea | D73: Guatemala
A74: Guinea-Bissau | D74: Guinea
A75: Guyana | D75: Guinea-Bissau
A76: Haiti | D76: Guyana
A77: Honduras | D77: Haiti
A78: Indien | D78: Honduras
A79: - Chennai (Madras) | D79: Indien
A80: - Kalkutta (Kolkata) | D80: - Chennai (Madras)
A81: - Bombay (Mumbai) | D81: - Kalkutta (Kolkata)
A82: - Neu Delhi | D82: - Bombay (Mumbai)
A83: - im Übrigen | D83: - Neu Delhi
A84: Indonesien | D84: - im Übrigen
A85: Iran, Islamische Republik | D85: Indonesien
A86: Irland | D86: Iran, Islamische Republik
A87: Island | D87: Irland
A88: Israel | D88: Island
A89: Italien | D89: Israel
A90: - Mailand | D90: Italien
A91: - Rom | D91: - Mailand
A92: - im Übrigen | D92: - Rom
A93: Jamaika | D93: - im Übrigen
A94: Japan | D94: Jamaika
A95: - Tokio | D95: Japan
A96: - im Übrigen | D96: - Tokio
A97: Jemen | D97: - im Übrigen
A98: Jordanien | D98: Jordanien
A99: Kambodscha | D99: Kambodscha
A100: Kamerun | D100: Kamerun
A101: Kanada | D101: Kanada
A102: - Ottawa | D102: - Ottawa
A103: - Toronto | D103: - Toronto
A104: - Vancouver | D104: - Vancouver
A105: - im Übrigen | D105: - im Übrigen
A106: Kap Verde | D106: Kasachstan
A107: Kasachstan | D107: Katar
A108: Katar | D108: Kenia
A109: Kenia | D109: Kirgisistan
A110: Kirgisistan | D110: Kolumbien
A111: Kolumbien | D111: Kongo, Republik
A112: Kongo | D112: Kongo, Demokratische Republik (früher: Zaire)
A113: Kongo, Demokratische Republik | D113: Korea, Demokr. Volksrepublik
A114: (früher: Zaire) | D114: Korea, Republik
A115: Korea, Demokratische Volksrepublik | D115: Kosovo
A116: Korea, | D116: Kroatien
A117: Korea Republik | D117: Kuba
A118: Kosovo | D118: Kuwait
A119: Kroatien | D119: Laos
A120: Kuba | D120: Lesotho
A121: Kuwait | D121: Lettland
A122: Laos | D122: Libanon
A123: Lesotho | D123: Libyen
A124: Lettland | D124: Liechtenstein
A125: Libanon | D125: Litauen
A126: Libyen | D126: Luxemburg
A127: Liechtenstein | D127: Madagaskar
A128: Litauen | D128: Malawi
A129: Luxemburg | D129: Malaysia
A130: Madagaskar | D130: Malediven
A131: Malawi | D131: Mali
A132: Malaysia | D132: Malta
A133: Malediven | D133: Marokko
A134: Mali | D134: Marshall Inseln
A135: Malta | D135: Mauretanien
A136: Marokko | D136: Mauritius
A137: Marshall Inseln | D137: Mazedonien
A138: Mauretanien | D138: Mexiko
A139: Mauritius | D139: Mikronesien
A140: Mazedonien | D140: Moldawien
A141: Mexiko | D141: Monaco
A142: Mikronesien | D142: Mongolei
A143: Moldau, Republik | D143: Montenegro
A144: Monaco | D144: Mosambik
A145: Mongolei | D145: Myanmar (früher Burma)
A146: Montenegro | D146: Namibia
A147: Mosambik | D147: Nepal
A148: Myanmar (früher Burma) | D148: Nicaragua
A149: Namibia | D149: Niederlande
A150: Nepal | D150: Niger
A151: Neuseeland | D151: Nigeria
A152: Nicaragua | D152: Norwegen
A153: Niederlande | D153: Österreich
A154: Niger | D154: Oman
A155: Nigeria | D155: Pakistan
A156: Norwegen | D156: - Islamabad
A157: Österreich | D157: - Im Übrigen
A158: Oman | D158: Palau
A159: Pakistan | D159: Panama
A160: - Islamabad | D160: Papua-Neuguinea
A161: - Im Übrigen | D161: Paraguay
A162: Palau | D162: Peru
A163: Panama | D163: Philippinen
A164: Papua-Neuguinea | D164: Polen
A165: Paraguay | D165: - Breslau
A166: Peru | D166: - Danzig
A167: Philippinen | D167: - Krakau
A168: Polen | D168: - Warschau, Krakau
A169: - Breslau | D169: - im Übrigen
A170: - Danzig | D170: Portugal
A171: - Krakau | D171: Ruanda
A172: - Warschau, Krakau | D172: Rumänien
A173: - im Übrigen | D173: - Bukarest
A174: Portugal | D174: - im Übrigen
A175: - Lissabon | D175: Russische Föderation
A176: - im Übrigen | D176: - Moskau ²)
A177: Ruanda | D177: - St. Petersburg
A178: Rumänien | D178: - im Übrigen
A179: - Bukarest | D179: Sambia
A180: - im Übrigen | D180: Samoa
A181: Russische Föderation | D181: San Marino
A182: - Moskau ²) | D182: Sao Tomé und Principe
A183: - Moskau ³) | D183: Saudi-Arabien
A184: - St. Petersburg | D184: - Djidda
A185: - im Übrigen | D185: - Riad
A186: Sambia | D186: Schweden
A187: Samoa | D187: Schweiz
A188: San Marino | D188: - Genf
A189: Sao Tomé und Principe | D189: - im Übrigen
A190: Saudi-Arabien | D190: Senegal
A191: - Djidda | D191: Serbien
A192: - Riad | D192: Sierra Leone
A193: Schweden | D193: Simbabwe
A194: Schweiz | D194: Singapur
A195: - Genf | D195: Slowakei
A196: - im Übrigen | D196: Slowenien
A197: Senegal | D197: Spanien
A198: Serbien | D198: - Barcelona
A199: Sierra Leone | D199: - Kanarische Inseln
A200: Simbabwe | D200: - Madrid
A201: Singapur | D201: - Palma de Mallorca
A202: Slowakische Republik | D202: - im Übrigen
... 59 more rows

Sheet VMA14 (hidden)
A1: Achtung: ab 2014 neues Reisekostenrecht: geänderte vereinfachte Rechtsprechung !
A3: Pauschbeträge für Verpflegungsmehraufwendungen
A4: bei einer Abwesenheitsdauer je Kalendertag im Ausland (Geltungsdauer 2014)
A5: Land mind. 24 Std. mind. 8 Std. Übernachtung
A6: ---------------------------------------------------------------------------------------------------------------------------------
A8: Afghanistan | B8: 30 | C8: 20 | E8: 95
A9: Ägypten | B9: 40 | C9: 27 | E9: 113
A10: Äthiopien | B10: 30 | C10: 20 | E10: 175
A11: Äquatorialguinea | B11: 50 | C11: 33 | E11: 226
A12: Albanien | B12: 23 | C12: 16 | E12: 110
A13: Algerien | B13: 39 | C13: 26 | E13: 190
A14: Andorra | B14: 32 | C14: 21 | E14: 82
A15: Angola | B15: 77 | C15: 52 | E15: 265
A16: Antigua und Barbuda | B16: 53 | C16: 36 | E16: 117
A17: Argentinien | B17: 36 | C17: 24 | E17: 125
A18: Armenien | B18: 24 | C18: 16 | E18: 90
A19: Aserbaidschan | B19: 40 | C19: 27 | E19: 120
A20: Australien | E20: _
A21: - Canberra | B21: 58 | C21: 39 | E21: 158
A22: - Sydney | B22: 59 | C22: 40 | E22: 186
A23: - im Übrigen | B23: 56 | C23: 37 | E23: 133
A24: Bahrain | B24: 36 | C24: 24 | E24: 70
A25: Bangladesch | B25: 30 | C25: 20 | E25: 75
A26: Barbados | B26: 58 | C26: 39 | E26: 179
A27: Belgien | B27: 41 | C27: 28 | E27: 135
A28: Benin | B28: 41 | C28: 28 | E28: 90
A29: Bolivien | B29: 24 | C29: 16 | E29: 70
A30: Bosnien-Herzegowina | B30: 24 | C30: 16 | E30: 70
A31: Botsuana | B31: 33 | C31: 22 | E31: 105
A32: Brasilien | E32: _
A33: - Brasilia | B33: 53 | C33: 36 | E33: 160
A34: - Rio de Janeiro | B34: 47 | C34: 32 | E34: 145
A35: - Sao Paulo | B35: 53 | C35: 36 | E35: 120
A36: - im Übrigen | B36: 54 | C36: 36 | E36: 110
A37: Brunei (Darussalam) | B37: 36 | C37: 24 | E37: 85
A38: Bulgarien | B38: 22 | C38: 15 | E38: 72
A39: Burkina Faso | B39: 36 | C39: 24 | E39: 100
A40: Burundi | B40: 47 | C40: 32 | E40: 98
A41: Chile | B41: 40 | C41: 27 | E41: 130
A42: China | B42: 33 | C42: 22 | E42: 80
A43: - Chengdu | B43: 32 | C43: 21 | E43: 85
A44: - Hongkong | B44: 62 | C44: 41 | E44: 170
A45: - Peking | B45: 39 | C45: 26 | E45: 115
A46: - Shanghai | B46: 42 | C46: 28 | E46: 140
A47: Costa Rica | B47: 36 | C47: 24 | E47: 69
A48: Côte d'Ivoire | B48: 54 | C48: 36 | E48: 145
A49: Deutschland | B49: 24 | C49: 12 | E49: 20
A50: Dänemark | B50: 60 | C50: 40 | E50: 150
A51: Dominica | B51: 40 | C51: 27 | E51: 94
A52: Dominikanische Republik | B52: 30 | C52: 20 | E52: 100
A53: Dschibuti | B53: 48 | C53: 32 | E53: 160
A54: Ecuador | B54: 39 | C54: 26 | E54: 55
A55: El Salvador | B55: 46 | C55: 31 | E55: 75
A56: Eritrea | B56: 30 | C56: 20 | E56: 58
A57: Estland | B57: 27 | C57: 18 | E57: 85
A58: Fidschi | B58: 32 | C58: 21 | E58: 57
A59: Finnland | B59: 39 | C59: 26 | E59: 136
A60: Frankreich | E60: _
A61: - Lyon | B61: 53 | C61: 36 | E61: 83
A62: - Marseille | B62: 51 | C62: 34 | E62: 86
A63: - Paris *) | B63: 58 | C63: 39 | E63: 135
A64: - Straßburg | B64: 48 | C64: 32 | E64: 89
A65: - im Übrigen | B65: 44 | C65: 29 | E65: 81
A66: Gabun | B66: 60 | C66: 40 | E66: 135
A67: Gambia | B67: 18 | C67: 12 | E67: 70
A68: Georgien | B68: 30 | C68: 20 | E68: 80
A69: Ghana | B69: 46 | C69: 31 | E69: 174
A70: Grenada | B70: 51 | C70: 34 | E70: 121
A71: Griechenland | E71: _
A72: - Athen | B72: 57 | C72: 38 | E72: 125
A73: - im Übrigen | B73: 42 | C73: 28 | E73: 132
A74: Guatemala | B74: 28 | C74: 19 | E74: 96
A75: Guinea | B75: 38 | C75: 25 | E75: 110
A76: Guinea-Bissau | B76: 30 | C76: 20 | E76: 60
A77: Guyana | B77: 41 | C77: 28 | E77: 81
A78: Haiti | B78: 50 | C78: 33 | E78: 111
A79: Honduras | B79: 35 | C79: 24 | E79: 115
A80: Indien | E80: _
A81: - Chennai (Madras) | B81: 30 | C81: 20 | E81: 135
A82: - Kalkutta (Kolkata) | B82: 33 | C82: 22 | E82: 120
A83: - Bombay (Mumbai) | B83: 35 | C83: 24 | E83: 150
A84: - Neu Delhi | B84: 35 | C84: 24 | E84: 130
A85: - im Übrigen | B85: 30 | C85: 20 | E85: 120
A86: Indonesien | B86: 39 | C86: 26 | E86: 110
A87: Iran, Islamische Republik | B87: 28 | C87: 19 | E87: 84
A88: Irland | B88: 42 | C88: 28 | E88: 90
A89: Island | B89: 53 | C89: 36 | E89: 105
A90: Israel | B90: 59 | C90: 40 | E90: 175
A91: Italien | E91: _
A92: - Mailand | B92: 39 | C92: 26 | E92: 156
A93: - Rom | B93: 52 | C93: 35 | E93: 160
A94: - im Übrigen | B94: 34 | C94: 23 | E94: 126
A95: Jamaika | B95: 54 | C95: 36 | E95: 135
A96: Japan | E96: _
A97: - Tokio | B97: 53 | C97: 36 | E97: 153
A98: - im Übrigen | B98: 51 | C98: 34 | E98: 156
A99: Jemen | B99: 24 | C99: 16 | E99: 95
A100: Jordanien | B100: 36 | C100: 24 | E100: 85
A101: Kambodscha | B101: 36 | C101: 24 | E101: 85
A102: Kamerun | B102: 40 | C102: 27 | E102: 130
A103: Kanada | E103: _
A104: - Ottawa | B104: 36 | C104: 24 | E104: 105
A105: - Toronto | B105: 41 | C105: 28 | E105: 135
A106: - Vancouver | B106: 36 | C106: 24 | E106: 125
A107: - im Übrigen | B107: 36 | C107: 24 | E107: 100
A108: Kap Verde | B108: 30 | C108: 20 | E108: 55
A109: Kasachstan | B109: 39 | C109: 26 | E109: 109
A110: Katar | B110: 56 | C110: 37 | E110: 170
A111: Kenia | B111: 35 | C111: 24 | E111: 135
A112: Kirgisistan | B112: 18 | C112: 12 | E112: 70
A113: Kolumbien | B113: 41 | C113: 28 | E113: 126
A114: Kongo | B114: 57 | C114: 38 | E114: 113
A115: Kongo, Demokratische Republik
A116: (früher: Zaire) | B116: 60 | C116: 40 | E116: 155
A117: Korea, Demokratische Volksrepublik | B117: 30 | C117: 20 | E117: 186
A118: Korea,
A119: Korea Republik | B119: 66 | C119: 44 | E119: 180
A120: Kosovo | B120: 26 | C120: 17 | E120: 65
A121: Kroatien | B121: 29 | C121: 20 | E121: 57
A122: Kuba | B122: 50 | C122: 33 | E122: 85
A123: Kuwait | B123: 42 | C123: 28 | E123: 130
A124: Laos | B124: 33 | C124: 22 | E124: 67
A125: Lesotho | B125: 24 | C125: 16 | E125: 70
A126: Lettland | B126: 18 | C126: 12 | E126: 80
A127: Libanon | B127: 44 | C127: 29 | E127: 120
A128: Libyen | B128: 45 | C128: 30 | E128: 100
A129: Liechtenstein | B129: 47 | C129: 32 | E129: 82
A130: Litauen | B130: 27 | C130: 18 | E130: 100
A131: Luxemburg | B131: 47 | C131: 32 | E131: 102
A132: Madagaskar | B132: 38 | C132: 25 | E132: 83
A133: Malawi | B133: 39 | C133: 26 | E133: 110
A134: Malaysia | B134: 36 | C134: 24 | E134: 100
A135: Malediven | B135: 38 | C135: 25 | E135: 93
A136: Mali | B136: 40 | C136: 27 | E136: 125
A137: Malta | B137: 30 | C137: 20 | E137: 90
A138: Marokko | B138: 42 | C138: 28 | E138: 105
A139: Marshall Inseln | B139: 63 | C139: 42 | E139: 70
A140: Mauretanien | B140: 48 | C140: 32 | E140: 89
A141: Mauritius | B141: 48 | C141: 32 | E141: 140
A142: Mazedonien | B142: 24 | C142: 16 | E142: 95
A143: Mexiko | B143: 36 | C143: 24 | E143: 110
A144: Mikronesien | B144: 56 | C144: 37 | E144: 74
A145: Moldau, Republik | B145: 18 | C145: 12 | E145: 100
A146: Monaco | B146: 41 | C146: 28 | E146: 52
A147: Mongolei | B147: 29 | C147: 20 | E147: 84
A148: Montenegro | B148: 29 | C148: 20 | E148: 95
A149: Mosambik | B149: 42 | C149: 28 | E149: 147
A150: Myanmar (früher Burma) | B150: 46 | C150: 31 | E150: 45
A151: Namibia | B151: 29 | C151: 20 | E151: 85
A152: Nepal | B152: 32 | C152: 21 | E152: 72
A153: Neuseeland | B153: 47 | C153: 32 | E153: 98
A154: Nicaragua | B154: 30 | C154: 20 | E154: 100
A155: Niederlande | B155: 60 | C155: 40 | E155: 115
A156: Niger | B156: 36 | C156: 24 | E156: 70
A157: Nigeria | B157: 60 | C157: 40 | E157: 220
A158: Norwegen | B158: 64 | C158: 43 | E158: 182
A159: Österreich | B159: 29 | C159: 20 | E159: 92
A160: Oman | B160: 48 | C160: 32 | E160: 120
A161: Pakistan | E161: _
A162: - Islamabad | B162: 24 | C162: 16 | E162: 150
A163: - Im Übrigen | B163: 24 | C163: 16 | E163: 70
A164: Palau | B164: 51 | C164: 34 | E164: 166
A165: Panama | B165: 34 | C165: 23 | E165: 101
A166: Papua-Neuguinea | B166: 36 | C166: 24 | E166: 90
A167: Paraguay | B167: 36 | C167: 24 | E167: 61
A168: Peru | B168: 38 | C168: 25 | E168: 140
A169: Philippinen | B169: 30 | C169: 20 | E169: 107
A170: Polen | E170: _
A171: - Breslau | B171: 33 | C171: 22 | E171: 92
A172: - Danzig | B172: 29 | C172: 20 | E172: 77
A173: - Krakau | B173: 28 | C173: 19 | E173: 88
A174: - Warschau, Krakau | B174: 30 | C174: 20 | E174: 105
A175: - im Übrigen | B175: 27 | C175: 18 | E175: 50
A176: Portugal | E176: _
A177: - Lissabon | B177: 36 | C177: 24 | E177: 95
A178: - im Übrigen | B178: 33 | C178: 22 | E178: 95
A179: Ruanda | B179: 36 | C179: 24 | E179: 135
A180: Rumänien | E180: _
A181: - Bukarest | B181: 26 | C181: 17 | E181: 100
A182: - im Übrigen | B182: 27 | C182: 18 | E182: 80
A183: Russische Föderation | E183: _
A184: - Moskau ²) | B184: 48 | C184: 32 | E184: 135
A185: - Moskau ³) | B185: 33 | C185: 22 | E185: 0³)
A186: - St. Petersburg | B186: 36 | C186: 24 | E186: 110
A187: - im Übrigen | B187: 36 | C187: 24 | E187: 80
A188: Sambia | B188: 36 | C188: 24 | E188: 95
A189: Samoa | B189: 29 | C189: 20 | E189: 57
A190: San Marino | B190: 41 | C190: 28 | E190: 77
A191: Sao Tomé und Principe | B191: 42 | C191: 28 | E191: 75
A192: Saudi-Arabien | B192: 47 | C192: 32 | E192: 80
A193: - Djidda | B193: 48 | C193: 32 | E193: 80
A194: - Riad | B194: 48 | C194: 32 | E194: 95
A195: Schweden | B195: 72 | C195: 48 | E195: 165
A196: Schweiz | E196: _
A197: - Genf | B197: 62 | C197: 41 | E197: 174
A198: - im Übrigen | B198: 48 | C198: 32 | E198: 139
A199: Senegal | B199: 42 | C199: 28 | E199: 130
A200: Serbien | B200: 30 | C200: 20 | E200: 90
A201: Sierra Leone | B201: 39 | C201: 26 | E201: 82
A202: Simbabwe | B202: 45 | C202: 30 | E202: 103
... 65 more rows

Sheet VMA15 (hidden)
A1: Pauschbeträge für Verpflegungsmehraufwendungen
A2: bei einer Abwesenheitsdauer je Kalendertag im Ausland (Geltungsdauer 2015)
A3: Land mind. 24 Std. mind. 8 Std. Übernachtung
A4: ---------------------------------------------------------------------------------------------------------------------------------
A5: 20% 80% 40%
A6: Afghanistan | B6: 30 | C6: 20 | E6: 95
A7: Ägypten | B7: 40 | C7: 27 | E7: 113
A8: Äthiopien | B8: 27 | C8: 18 | E8: 86
A9: Äquatorialguinea | B9: 50 | C9: 33 | E9: 226
A10: Albanien | B10: 23 | C10: 16 | E10: 110
A11: Algerien | B11: 39 | C11: 26 | E11: 190
A12: Andorra | B12: 32 | C12: 21 | E12: 82
A13: Angola | B13: 77 | C13: 52 | E13: 265
A14: Antigua und Barbuda | B14: 53 | C14: 36 | E14: 117
A15: Argentinien | B15: 34 | C15: 23 | E15: 144
A16: Armenien | B16: 23 | C16: 16 | E16: 63
A17: Aserbaidschan | B17: 40 | C17: 27 | E17: 120
A18: Australien | B18: 56 | C18: 37 | E18: 133
A19: - Canberra | B19: 58 | C19: 39 | E19: 158
A20: - Sydney | B20: 59 | C20: 40 | E20: 186
A21: - im Übrigen | B21: 56 | C21: 37 | E21: 133
A22: Bahrain | B22: 36 | C22: 24 | E22: 70
A23: Bangladesch | B23: 30 | C23: 20 | E23: 111
A24: Barbados | B24: 58 | C24: 39 | E24: 179
A25: Belgien | B25: 41 | C25: 28 | E25: 135
A26: Benin | B26: 40 | C26: 27 | E26: 101
A27: Bolivien | B27: 24 | C27: 16 | E27: 70
A28: Bosnien-Herzegowina | B28: 18 | C28: 12 | E28: 73
A29: Botsuana | B29: 33 | C29: 22 | E29: 105
A30: Brasilien | B30: 54 | C30: 36 | E30: 110
A31: - Brasilia | B31: 53 | C31: 36 | E31: 160
A32: - Rio de Janeiro | B32: 47 | C32: 32 | E32: 145
A33: - Sao Paulo | B33: 53 | C33: 36 | E33: 120
A34: - im Übrigen | B34: 54 | C34: 36 | E34: 110
A35: Brunei (Darussalam) | B35: 48 | C35: 32 | E35: 106
A36: Bulgarien | B36: 22 | C36: 15 | E36: 90
A37: Burkina Faso | B37: 44 | C37: 29 | E37: 84
A38: Burundi | B38: 47 | C38: 32 | E38: 98
A39: Cabo Verde | B39: 30 | C39: 20 | E39: 55
A40: Chile | B40: 40 | C40: 27 | E40: 130
A41: China | B41: 33 | C41: 22 | E41: 80
A42: - Chengdu | B42: 32 | C42: 21 | E42: 85
A43: - Hongkong | B43: 62 | C43: 41 | E43: 170
A44: - Peking | B44: 39 | C44: 26 | E44: 115
A45: - Shanghai | B45: 42 | C45: 28 | E45: 140
A46: Costa Rica | B46: 36 | C46: 24 | E46: 69
A47: Côte d'Ivoire | B47: 51 | C47: 34 | E47: 146
A48: Dänemark | B48: 60 | C48: 40 | E48: 150
A49: Deutschland | B49: 24 | C49: 12 | E49: 20
A50: Dominica | B50: 40 | C50: 27 | E50: 94
A51: Dominikanische Republik | B51: 40 | C51: 27 | E51: 71
A52: Dschibuti | B52: 48 | C52: 32 | E52: 160
A53: Ecuador | B53: 39 | C53: 26 | E53: 55
A54: El Salvador | B54: 46 | C54: 31 | E54: 75
A55: Eritrea | B55: 30 | C55: 20 | E55: 58
A56: Estland | B56: 27 | C56: 18 | E56: 71
A57: Fidschi | B57: 32 | C57: 21 | E57: 57
A58: Finnland | B58: 39 | C58: 26 | E58: 136
A59: Frankreich
A60: - Lyon | B60: 53 | C60: 36 | E60: 83
A61: - Marseille | B61: 51 | C61: 34 | E61: 86
A62: - Paris *) | B62: 58 | C62: 39 | E62: 135
A63: - Straßburg | B63: 48 | C63: 32 | E63: 89
A64: - im Übrigen | B64: 44 | C64: 29 | E64: 81
A65: Gabun | B65: 62 | C65: 41 | E65: 278
A66: Gambia | B66: 18 | C66: 12 | E66: 70
A67: Georgien | B67: 30 | C67: 20 | E67: 80
A68: Ghana | B68: 46 | C68: 31 | E68: 174
A69: Grenada | B69: 51 | C69: 34 | E69: 121
A70: Griechenland | E70: _
A71: - Athen | B71: 57 | C71: 38 | E71: 125
A72: - im Übrigen | B72: 42 | C72: 28 | E72: 132
A73: Guatemala | B73: 28 | C73: 19 | E73: 96
A74: Guinea | B74: 38 | C74: 25 | E74: 110
A75: Guinea-Bissau | B75: 30 | C75: 20 | E75: 60
A76: Guyana | B76: 41 | C76: 28 | E76: 81
A77: Haiti | B77: 50 | C77: 33 | E77: 111
A78: Honduras | B78: 44 | C78: 29 | E78: 104
A79: Indien | E79: _
A80: - Chennai (Madras) | B80: 30 | C80: 20 | E80: 135
A81: - Kalkutta (Kolkata) | B81: 33 | C81: 22 | E81: 120
A82: - Bombay (Mumbai) | B82: 35 | C82: 24 | E82: 150
A83: - Neu Delhi | B83: 35 | C83: 24 | E83: 130
A84: - im Übrigen | B84: 30 | C84: 20 | E84: 120
A85: Indonesien | B85: 38 | C85: 25 | E85: 130
A86: Iran, Islamische Republik | B86: 28 | C86: 19 | E86: 84
A87: Irland | B87: 42 | C87: 28 | E87: 90
A88: Island | B88: 47 | C88: 32 | E88: 108
A89: Israel | B89: 59 | C89: 40 | E89: 175
A90: Italien | E90: _
A91: - Mailand | B91: 39 | C91: 26 | E91: 156
A92: - Rom | B92: 52 | C92: 35 | E92: 160
A93: - im Übrigen | B93: 34 | C93: 23 | E93: 126
A94: Jamaika | B94: 54 | C94: 36 | E94: 135
A95: Japan | E95: _
A96: - Tokio | B96: 53 | C96: 36 | E96: 153
A97: - im Übrigen | B97: 51 | C97: 34 | E97: 156
A98: Jordanien | B98: 36 | C98: 24 | E98: 85
A99: Kambodscha | B99: 36 | C99: 24 | E99: 85
A100: Kamerun | B100: 40 | C100: 27 | E100: 130
A101: Kanada | E101: _
A102: - Ottawa | B102: 36 | C102: 24 | E102: 105
A103: - Toronto | B103: 41 | C103: 28 | E103: 135
A104: - Vancouver | B104: 36 | C104: 24 | E104: 125
A105: - im Übrigen | B105: 36 | C105: 24 | E105: 100
A106: Kasachstan | B106: 39 | C106: 26 | E106: 109
A107: Katar | B107: 56 | C107: 37 | E107: 170
A108: Kenia | B108: 35 | C108: 24 | E108: 135
A109: Kirgisistan | B109: 29 | C109: 20 | E109: 91
A110: Kolumbien | B110: 41 | C110: 28 | E110: 126
A111: Kongo, Republik | B111: 57 | C111: 38 | E111: 113
A112: Kongo, Demokratische Republik (früher: Zaire) | B112: 60 | C112: 40 | E112: 155
A113: Korea, Demokr. Volksrepublik | B113: 39 | C113: 26 | E113: 132
A114: Korea, Republik | B114: 66 | C114: 44 | E114: 180
A115: Kosovo | B115: 26 | C115: 17 | E115: 65
A116: Kroatien | B116: 28 | C116: 19 | E116: 75
A117: Kuba | B117: 50 | C117: 33 | E117: 85
A118: Kuwait | B118: 42 | C118: 28 | E118: 130
A119: Laos | B119: 33 | C119: 22 | E119: 67
A120: Lesotho | B120: 24 | C120: 16 | E120: 70
A121: Lettland | B121: 30 | C121: 20 | E121: 80
A122: Libanon | B122: 44 | C122: 29 | E122: 120
A123: Libyen | B123: 45 | C123: 30 | E123: 100
A124: Liechtenstein | B124: 47 | C124: 32 | E124: 82
A125: Litauen | B125: 24 | C125: 16 | E125: 68
A126: Luxemburg | B126: 47 | C126: 32 | E126: 102
A127: Madagaskar | B127: 38 | C127: 25 | E127: 83
A128: Malawi | B128: 39 | C128: 26 | E128: 110
A129: Malaysia | B129: 36 | C129: 24 | E129: 100
A130: Malediven | B130: 38 | C130: 25 | E130: 93
A131: Mali | B131: 41 | C131: 28 | E131: 122
A132: Malta | B132: 45 | C132: 30 | E132: 112
A133: Marokko | B133: 42 | C133: 28 | E133: 105
A134: Marshall Inseln | B134: 63 | C134: 42 | E134: 70
A135: Mauretanien | B135: 48 | C135: 32 | E135: 89
A136: Mauritius | B136: 48 | C136: 32 | E136: 140
A137: Mazedonien | B137: 24 | C137: 16 | E137: 95
A138: Mexiko | B138: 41 | C138: 28 | E138: 141
A139: Mikronesien | B139: 56 | C139: 37 | E139: 74
A140: Moldawien | B140: 18 | C140: 12 | E140: 100
A141: Monaco | B141: 41 | C141: 28 | E141: 52
A142: Mongolei | B142: 29 | C142: 20 | E142: 84
A143: Montenegro | B143: 29 | C143: 20 | E143: 95
A144: Mosambik | B144: 42 | C144: 28 | E144: 147
A145: Myanmar (früher Burma) | B145: 46 | C145: 31 | E145: 45
A146: Namibia | B146: 23 | C146: 16 | E146: 77
A147: Nepal | B147: 28 | C147: 19 | E147: 86
A148: Nicaragua | B148: 30 | C148: 20 | E148: 100
A149: Niederlande | B149: 46 | C149: 31 | E149: 119
A150: Niger | B150: 36 | C150: 24 | E150: 70
A151: Nigeria | B151: 63 | C151: 42 | E151: 255
A152: Norwegen | B152: 64 | C152: 43 | E152: 182
A153: Österreich | B153: 36 | C153: 24 | E153: 104
A154: Oman | B154: 48 | C154: 32 | E154: 120
A155: Pakistan | E155: _
A156: - Islamabad | B156: 30 | C156: 20 | E156: 165
A157: - Im Übrigen | B157: 27 | C157: 18 | E157: 68
A158: Palau | B158: 51 | C158: 34 | E158: 166
A159: Panama | B159: 34 | C159: 23 | E159: 101
A160: Papua-Neuguinea | B160: 36 | C160: 24 | E160: 90
A161: Paraguay | B161: 36 | C161: 24 | E161: 61
A162: Peru | B162: 30 | C162: 20 | E162: 93
A163: Philippinen | B163: 30 | C163: 20 | E163: 107
A164: Polen | E164: _
A165: - Breslau | B165: 33 | C165: 22 | E165: 92
A166: - Danzig | B166: 29 | C166: 20 | E166: 77
A167: - Krakau | B167: 28 | C167: 19 | E167: 88
A168: - Warschau, Krakau | B168: 30 | C168: 20 | E168: 105
A169: - im Übrigen | B169: 27 | C169: 18 | E169: 50
A170: Portugal | B170: 36 | C170: 24 | E170: 92
A171: Ruanda | B171: 36 | C171: 24 | E171: 135
A172: Rumänien | E172: _
A173: - Bukarest | B173: 26 | C173: 17 | E173: 100
A174: - im Übrigen | B174: 27 | C174: 18 | E174: 80
A175: Russische Föderation | E175: _
A176: - Moskau ²) | B176: 30 | C176: 20 | E176: 118
A177: - St. Petersburg | B177: 24 | C177: 16 | E177: 104
A178: - im Übrigen | B178: 21 | C178: 14 | E178: 78
A179: Sambia | B179: 36 | C179: 24 | E179: 95
A180: Samoa | B180: 29 | C180: 20 | E180: 57
A181: San Marino | B181: 41 | C181: 28 | E181: 77
A182: Sao Tomé und Principe | B182: 42 | C182: 28 | E182: 75
A183: Saudi-Arabien | B183: 47 | C183: 32 | E183: 80
A184: - Djidda | B184: 48 | C184: 32 | E184: 80
A185: - Riad | B185: 48 | C185: 32 | E185: 95
A186: Schweden | B186: 72 | C186: 48 | E186: 165
A187: Schweiz | E187: _
A188: - Genf | B188: 62 | C188: 41 | E188: 174
A189: - im Übrigen | B189: 48 | C189: 32 | E189: 139
A190: Senegal | B190: 47 | C190: 32 | E190: 125
A191: Serbien | B191: 30 | C191: 20 | E191: 90
A192: Sierra Leone | B192: 39 | C192: 26 | E192: 82
A193: Simbabwe | B193: 45 | C193: 30 | E193: 103
A194: Singapur | B194: 53 | C194: 36 | E194: 188
A195: Slowakei | B195: 24 | C195: 16 | E195: 130
A196: Slowenien | B196: 30 | C196: 20 | E196: 95
A197: Spanien | E197: _
A198: - Barcelona | B198: 32 | C198: 21 | E198: 118
A199: - Kanarische Inseln | B199: 32 | C199: 21 | E199: 98
A200: - Madrid | B200: 41 | C200: 28 | E200: 113
... 58 more rows

Sheet VMA2016 (hidden)

Sheet Tabelle1 (hidden)
B3: 20

Sheet Bearbeitungshinweise
B1: Reisekostenabrechnung (Inland) 2020
B3: für den Monat / Zeitraum | E3: Mai | J3: Name:
B5: Ich bin Arbeitnehmer? | J5: ja
B7: Ich erstelle die Abrechnung für meine Einkommensteuererklärung | J7: nein
A9: ZURÜCK | B9: Reisedaten | D9: Reisezeiten | I9: Übernachtung | Q9: Fahrt-kosten
B10: Reiseziel | C10: Reisezweck | D10: Reisetag | E10: Beginn | F10: Ende | G10: Dauer | H10: Verpflegungs-pauschale | I10: Übernachtung | K10: Wurden bestimmte Mahlzeiten gestellt bzw. separat abgerechnet? | N10: Verpflegungspau-schale abzgl. F, M, A | O10: Nachweis (z. B. Hotelrechnung lt. Anlage) | P10: Pauschal (20,- EUR nur ohne Nachweis) | Q10: gefahrene Strecke (gesamt)
B11: Ort | C11: Erläuterungen | D11: Datum | E11: Zeit | G11: Std. | H11: EUR | J11: Hotel (Name) | K11: Frühstück | L11: Mittagessen | M11: Abendessen | N11: EUR | O11: EUR | P11: EUR | Q11: km | S11: Frühstück | T11: Mittagessen | U11: Abendessen | V11: Kürzung Gesamt | W11: VMAabzgl. Kürzung | X11: VMA | Y11: Max | Z11: Erstattung
B12: Bremen | C12: Messe | D12: 2020-05-15 | E12: 18:00:00 | F12: 1 | G12: =IF((ISNUMBER(D12)),(F12-E12),"") -> 0.25 | H12: =IF(AND(ISNUMBER(D12),ISNUMBER(G12)),IF(G12>TIME(23,59,59),data_fill!$D$3,IF(OR(AND(G12>TIME(8,0,0),E12>TIME(0,0,0),F12<TIME(23,59,59)),AND(E12<TIME(0,0,1),F12<TIME(23,59,59),E12<>"",F12<>""),AND(E12>TIME(0,0,0),F12>TIME(23,59,59))),data_fill!$D$2,0)),0) -> 14 | I12: ja | J12: Acer | N12: =Z12 -> 14 | O12: 100 | P12: =IF(AND($J$5="ja",I12="ja",$J$7="nein"),IF(O12="",20,""),"") ->  | Q12: 476 | S12: =IF(K12="ja",Kürzung!$B$30,0) -> 0 | T12: =IF(L12="ja",Kürzung!$B$31,0) -> 0 | U12: =IF(M12="ja",Kürzung!$B$32,0) -> 0 | V12: =SUM(S12:U12) -> 0 | W12: =H12-V12 -> 14 | X12: =H12 -> 14 | Y12: =IF(((H12-V12)>0),(H12-V12),X12) -> 14 | Z12: =IF((W12<=0),0,Y12) -> 14 | AA12: =IF(Y12>=0,Y12,0) -> 14 | AB12: =IF(AND(S12=4.8,Z12>=0),S12,0) -> 0 | AC12: =IF(AND(T12=9.6,$Z12>=0),T12,0) -> 0 | AD12: 0 | AE12: =SUM(AB12:AD12) -> 0
B13: Bremen | C13: Messe | D13: 2020-05-16 | E13: 00:00:00 | F13: 1 | G13: 1 | H13: =IF(AND(D13<>"",G13<>""),IF(G13>TIME(23,59,59),data_fill!$D$3,IF(OR(AND(G13>TIME(8,0,0),E13>TIME(0,0,0),F13<TIME(23,59,59)),AND(E13<TIME(0,0,1),F13<TIME(23,59,59),E13<>"",F13<>""),AND(E13>TIME(0,0,0),F13>TIME(23,59,59))),data_fill!$D$2,0)),0) -> 28 | I13: ja | J13: Acer | K13: ja | L13: ja | N13: =Z13 -> 11.2 | P13: =IF(AND($J$5="ja",I13="ja",$J$7="nein"),IF(O13="",20,""),"") -> 20 | Q13: 15 | S13: =IF(K13="ja",Kürzung!$B$30,0) -> 5.6 | T13: =IF(L13="ja",Kürzung!$B$31,0) -> 11.2 | U13: =IF(M13="ja",Kürzung!$B$32,0) -> 0 | V13: =SUM(S13:U13) -> 16.8 | W13: =H13-V13 -> 11.2 | X13: =H13 -> 28 | Y13: =IF(((H13-V13)>0),(H13-V13),X13) -> 11.2 | Z13: =IF((W13<=0),0,Y13) -> 11.2 | AA13: =IF(Y13>=0,Y13,0) -> 11.2 | AB13: =IF(AND(S13=4.8,Z13>=0),S13,0) -> 0 | AC13: 0 | AD13: 0 | AE13: =SUM(AB13:AD13) -> 0
B14: Bremern | C14: Messe | D14: 2020-05-17 | E14: 00:00:00 | F14: 0.75 | G14: =IF((ISNUMBER(D14)),(F14-E14),"") -> 0.75 | H14: =IF(AND(D14<>"",G14<>""),IF(G14>TIME(23,59,59),data_fill!$D$3,IF(OR(AND(G14>TIME(8,0,0),E14>TIME(0,0,0),F14<TIME(23,59,59)),AND(E14<TIME(0,0,1),F14<TIME(23,59,59),E14<>"",F14<>""),AND(E14>TIME(0,0,0),F14>TIME(23,59,59))),data_fill!$D$2,0)),0) -> 14 | N14: 14 | P14: =IF(AND($J$5="ja",I14="ja",$J$7="nein"),IF(O14="",20,""),"") ->  | Q14: 476 | S14: =IF(K14="ja",Kürzung!$B$30,0) -> 0 | T14: =IF(L14="ja",Kürzung!$B$31,0) -> 0 | U14: =IF(M14="ja",Kürzung!$B$32,0) -> 0 | V14: =SUM(S14:U14) -> 0 | W14: =H14-V14 -> 14 | X14: =H14 -> 14 | Y14: =IF(((H14-V14)>0),(H14-V14),X14) -> 14 | Z14: =IF((W14<=0),0,Y14) -> 14 | AA14: =IF(Y14>=0,Y14,0) -> 14 | AB14: =IF(AND(S14=4.8,Z14>=0),S14,0) -> 0 | AC14: 0 | AD14: 0 | AE14: 0
H15: =IF(AND(D15<>"",G15<>""),IF(G15>TIME(23,59,59),data_fill!$D$3,IF(OR(AND(G15>TIME(8,0,0),E15>TIME(0,0,0),F15<TIME(23,59,59)),AND(E15<TIME(0,0,1),F15<TIME(23,59,59),E15<>"",F15<>""),AND(E15>TIME(0,0,0),F15>TIME(23,59,59))),data_fill!$D$2,0)),0) -> 0 | N15: 0 | S15: =IF(K15="ja",Kürzung!$B$30,0) -> 0 | T15: =IF(L15="ja",Kürzung!$B$31,0) -> 0 | U15: =IF(M15="ja",Kürzung!$B$32,0) -> 0 | V15: =SUM(S15:U15) -> 0 | W15: =H15-V15 -> 0 | X15: =H15 -> 0 | Y15: =IF(((H15-V15)>0),(H15-V15),X15) -> 0 | Z15: =IF((W15<=0),0,Y15) -> 0 | AA15: =IF(Y15>=0,Y15,0) -> 0 | AB15: =IF(AND(S15=4.8,Z15>=0),S15,0) -> 0 | AC15: 0 | AD15: 0 | AE15: 0
B16: Leipzig | C16: Kundendienst | D16: 2020-05-20 | E16: 08:00:00 | F16: 0.7847222222 | G16: 0.4513888889 | H16: =IF(AND(D16<>"",G16<>""),IF(G16>TIME(23,59,59),data_fill!$D$3,IF(OR(AND(G16>TIME(8,0,0),E16>TIME(0,0,0),F16<TIME(23,59,59)),AND(E16<TIME(0,0,1),F16<TIME(23,59,59),E16<>"",F16<>""),AND(E16>TIME(0,0,0),F16>TIME(23,59,59))),data_fill!$D$2,0)),0) -> 14 | L16: ja | N16: 2.8 | Q16: 244 | S16: =IF(K16="ja",Kürzung!$B$30,0) -> 0 | T16: =IF(L16="ja",Kürzung!$B$31,0) -> 11.2 | U16: =IF(M16="ja",Kürzung!$B$32,0) -> 0 | V16: 11.2 | W16: =H16-V16 -> 2.8 | X16: =H16 -> 14 | Y16: =IF(((H16-V16)>0),(H16-V16),X16) -> 2.8 | Z16: 2.8 | AA16: =IF(Y16>=0,Y16,0) -> 2.8 | AB16: 0 | AC16: 0 | AD16: 0 | AE16: 0
H17: =IF(AND(D17<>"",G17<>""),IF(G17>TIME(23,59,59),data_fill!$D$3,IF(OR(AND(G17>TIME(8,0,0),E17>TIME(0,0,0),F17<TIME(23,59,59)),AND(E17<TIME(0,0,1),F17<TIME(23,59,59),E17<>"",F17<>""),AND(E17>TIME(0,0,0),F17>TIME(23,59,59))),data_fill!$D$2,0)),0) -> 0 | N17: 0 | S17: =IF(K17="ja",Kürzung!$B$30,0) -> 0 | T17: =IF(L17="ja",Kürzung!$B$31,0) -> 0 | U17: =IF(M17="ja",Kürzung!$B$32,0) -> 0 | V17: 0 | W17: 0 | X17: 0 | Y17: 0 | Z17: 0 | AA17: 0 | AB17: 0 | AC17: 0 | AD17: 0 | AE17: 0
B18: Görlitz | C18: Kundendienst | D18: 2020-05-29 | E18: 08:00:00 | F18: 0.6458333333 | G18: 0.3125 | H18: =IF(AND(D18<>"",G18<>""),IF(G18>TIME(23,59,59),data_fill!$D$3,IF(OR(AND(G18>TIME(8,0,0),E18>TIME(0,0,0),F18<TIME(23,59,59)),AND(E18<TIME(0,0,1),F18<TIME(23,59,59),E18<>"",F18<>""),AND(E18>TIME(0,0,0),F18>TIME(23,59,59))),data_fill!$D$2,0)),0) -> 0 | N18: 0 | Q18: 224 | S18: =IF(K18="ja",Kürzung!$B$30,0) -> 0 | T18: =IF(L18="ja",Kürzung!$B$31,0) -> 0 | U18: =IF(M18="ja",Kürzung!$B$32,0) -> 0 | V18: 0 | W18: 0 | X18: 0 | Y18: 0 | Z18: 0 | AA18: 0 | AB18: 0 | AC18: 0 | AD18: 0 | AE18: 0
H19: =IF(AND(D19<>"",G19<>""),IF(G19>TIME(23,59,59),data_fill!$D$3,IF(OR(AND(G19>TIME(8,0,0),E19>TIME(0,0,0),F19<TIME(23,59,59)),AND(E19<TIME(0,0,1),F19<TIME(23,59,59),E19<>"",F19<>""),AND(E19>TIME(0,0,0),F19>TIME(23,59,59))),data_fill!$D$2,0)),0) -> 0 | N19: 0 | S19: =IF(K19="ja",Kürzung!$B$30,0) -> 0 | T19: =IF(L19="ja",Kürzung!$B$31,0) -> 0 | U19: =IF(M19="ja",Kürzung!$B$32,0) -> 0 | V19: 0 | W19: 0 | X19: 0 | Y19: 0 | Z19: 0 | AA19: 0 | AB19: 0 | AC19: 0 | AD19: 0 | AE19: 0
H20: =IF(AND(D20<>"",G20<>""),IF(G20>TIME(23,59,59),data_fill!$D$3,IF(OR(AND(G20>TIME(8,0,0),E20>TIME(0,0,0),F20<TIME(23,59,59)),AND(E20<TIME(0,0,1),F20<TIME(23,59,59),E20<>"",F20<>""),AND(E20>TIME(0,0,0),F20>TIME(23,59,59))),data_fill!$D$2,0)),0) -> 0 | N20: 0 | S20: =IF(K20="ja",Kürzung!$B$30,0) -> 0 | T20: =IF(L20="ja",Kürzung!$B$31,0) -> 0 | U20: =IF(M20="ja",Kürzung!$B$32,0) -> 0 | V20: 0 | W20: 0 | X20: 0 | Y20: 0 | Z20: 0 | AA20: 0 | AB20: 0 | AC20: 0 | AD20: 0 | AE20: 0
H21: =IF(AND(D21<>"",G21<>""),IF(G21>TIME(23,59,59),data_fill!$D$3,IF(OR(AND(G21>TIME(8,0,0),E21>TIME(0,0,0),F21<TIME(23,59,59)),AND(E21<TIME(0,0,1),F21<TIME(23,59,59),E21<>"",F21<>""),AND(E21>TIME(0,0,0),F21>TIME(23,59,59))),data_fill!$D$2,0)),0) -> 0 | N21: 0 | S21: =IF(K21="ja",Kürzung!$B$30,0) -> 0 | T21: =IF(L21="ja",Kürzung!$B$31,0) -> 0 | U21: =IF(M21="ja",Kürzung!$B$32,0) -> 0 | V21: 0 | W21: 0 | X21: 0 | Y21: 0 | Z21: 0 | AA21: 0 | AB21: 0 | AC21: 0 | AD21: 0 | AE21: 0
H22: =IF(AND(D22<>"",G22<>""),IF(G22>TIME(23,59,59),data_fill!$D$3,IF(OR(AND(G22>TIME(8,0,0),E22>TIME(0,0,0),F22<TIME(23,59,59)),AND(E22<TIME(0,0,1),F22<TIME(23,59,59),E22<>"",F22<>""),AND(E22>TIME(0,0,0),F22>TIME(23,59,59))),data_fill!$D$2,0)),0) -> 0 | N22: 0 | S22: =IF(K22="ja",Kürzung!$B$30,0) -> 0 | T22: =IF(L22="ja",Kürzung!$B$31,0) -> 0 | U22: =IF(M22="ja",Kürzung!$B$32,0) -> 0 | V22: 0 | W22: 0 | X22: 0 | Y22: 0 | Z22: 0 | AA22: 0 | AB22: 0 | AC22: 0 | AD22: 0 | AE22: 0
H23: =IF(AND(D23<>"",G23<>""),IF(G23>TIME(23,59,59),data_fill!$D$3,IF(OR(AND(G23>TIME(8,0,0),E23>TIME(0,0,0),F23<TIME(23,59,59)),AND(E23<TIME(0,0,1),F23<TIME(23,59,59),E23<>"",F23<>""),AND(E23>TIME(0,0,0),F23>TIME(23,59,59))),data_fill!$D$2,0)),0) -> 0 | N23: 0 | S23: =IF(K23="ja",Kürzung!$B$30,0) -> 0 | T23: =IF(L23="ja",Kürzung!$B$31,0) -> 0 | U23: =IF(M23="ja",Kürzung!$B$32,0) -> 0 | V23: 0 | W23: 0 | X23: 0 | Y23: 0 | Z23: 0 | AA23: 0 | AB23: 0 | AC23: 0 | AD23: 0 | AE23: 0
B24: Summe | N24: =SUM(N12:N23) -> 42 | O24: =SUM(O12:O23) -> 100 | P24: =SUM(P12:P23) -> 20 | Q24: =SUM(Q12:Q23) -> 1435 | S24: =IF(K24="ja",Kürzung!$B$30,0) -> 0 | T24: =IF(L24="ja",Kürzung!$B$31,0) -> 0 | U24: =IF(M24="ja",Kürzung!$B$32,0) -> 0 | V24: =SUM(S24:U24) -> 0 | W24: =H24-V24 -> 0 | X24: =H24 -> 0 | Y24: =IF(((H24-V24)>0),(H24-V24),0) -> 0 | Z24: =IF((W24<=0),0,Y24) -> 0 | AA24: =IF(Y24>=0,Y24,0) -> 0 | AB24: =IF(AND(S24=4.8,Z24>=0),S24,0) -> 0 | AC24: =IF(AND(T24=9.6,$Z24>=0),T24,0) -> 0 | AD24: =IF(AND(U24=9.6,$Z24>=0),U24,0) -> 0 | AE24: 0
S25: =IF(K25="ja",Kürzung!$B$30,0) -> 0 | T25: =IF(L25="ja",Kürzung!$B$31,0) -> 0 | U25: =IF(M25="ja",Kürzung!$B$32,0) -> 0 | V25: =SUM(S25:U25) -> 0 | W25: =H25-V25 -> 0 | X25: =H25 -> 0 | Y25: =IF(((H25-V25)>0),(H25-V25),0) -> 0 | Z25: =IF((W25<=0),0,Y25) -> 0 | AA25: =IF(Y25>=0,Y25,0) -> 0 | AB25: =IF(AND(S25=4.8,Z25>=0),S25,0) -> 0 | AC25: =IF(AND(T25=9.6,$Z25>=0),T25,0) -> 0 | AD25: =IF(AND(U25=9.6,$Z25>=0),U25,0) -> 0 | AE25: 0
B26: Auszahlungen | Z26: =SUM(Z12:Z25) -> 42 | AA26: =IF(Y26>=0,Y26,0) -> 0 | AB26: =(SUM(AB12:AB25))/Kürzung!$B$30 -> 0 | AC26: =(SUM(AC12:AC25))/Kürzung!$B$31 -> 0 | AD26: =(SUM(AD12:AD25))/Kürzung!$B$32 -> 0
B27: Summe Verpflegungsmehraufwendungen abzgl. anzurechnende F, M, A | M27: =Z26 -> 42
B29: Übernachtungskosten | M29: =SUM(J30:J31) -> 120
C30: Hotel (mit Nachweis) | J30: =O24 -> 100
C31: Pauschal | J31: =P24 -> 20
B33: Fahrtkosten (Pkw) | M33: =$H$34*$D$34 -> 430.5
C34: Summe km: | D34: =$Q$24 -> 1435 | F34: pauschal pro Kilometer: | H34: =Kürzung!$B$35 -> 0.3
B36: sonstige Kosten lt. Nachweis (z. B. Parkkosten, Autobahngebühren) | M36: 5
B38: Auszahlung der Reisekosten für | E38: =IF((($E$3)="Bitte auswählen!")," ",$E$3) -> Mai | M38: =SUM(M27+M29+M33+M36) -> 597.5

Sheet Kürzung (hidden)
B3: ja
B4: nein | C4: Frühstück | D4: Mittag | E4: Abendessen | F4: SUMME
C5: =+IF(Reisekostenabrechnung!K11="ja",Reisekostenabrechnung!$H11*-0.2,0) -> 0 | D5: =+IF(Reisekostenabrechnung!L11="ja",Reisekostenabrechnung!$H11*-0.4,0) -> 0 | E5: =+IF(Reisekostenabrechnung!M11="ja",Reisekostenabrechnung!$H11*-0.4,0) -> 0 | F5: =SUM(C5:E5) -> 00:00:00
C6: =+IF(Reisekostenabrechnung!K12="ja",Reisekostenabrechnung!$H12*-0.2,0) -> 0 | D6: =+IF(Reisekostenabrechnung!L12="ja",Reisekostenabrechnung!$H12*-0.4,0) -> 0 | E6: =+IF(Reisekostenabrechnung!M12="ja",Reisekostenabrechnung!$H12*-0.4,0) -> 0 | F6: =SUM(C6:E6) -> 00:00:00
C7: =+IF(Reisekostenabrechnung!K13="ja",Reisekostenabrechnung!$H13*-0.2,0) -> 0 | D7: =+IF(Reisekostenabrechnung!L13="ja",Reisekostenabrechnung!$H13*-0.4,0) -> 0 | E7: =+IF(Reisekostenabrechnung!M13="ja",Reisekostenabrechnung!$H13*-0.4,0) -> 0 | F7: 00:00:00
C8: =+IF(Reisekostenabrechnung!K14="ja",Reisekostenabrechnung!$H14*-0.2,0) -> 0 | D8: =+IF(Reisekostenabrechnung!L14="ja",Reisekostenabrechnung!$H14*-0.4,0) -> 0 | E8: =+IF(Reisekostenabrechnung!M14="ja",Reisekostenabrechnung!$H14*-0.4,0) -> 0 | F8: 00:00:00
C9: =+IF(Reisekostenabrechnung!K16="ja",Reisekostenabrechnung!$H16*-0.2,0) -> 0 | D9: =+IF(Reisekostenabrechnung!L16="ja",Reisekostenabrechnung!$H16*-0.4,0) -> 0 | E9: =+IF(Reisekostenabrechnung!M16="ja",Reisekostenabrechnung!$H16*-0.4,0) -> 0 | F9: 00:00:00
C10: =+IF(Reisekostenabrechnung!#REF!="ja",Reisekostenabrechnung!#REF!*-0.2,0) ->  | D10: =+IF(Reisekostenabrechnung!#REF!="ja",Reisekostenabrechnung!#REF!*-0.4,0) ->  | E10: =+IF(Reisekostenabrechnung!#REF!="ja",Reisekostenabrechnung!#REF!*-0.4,0) -> 
C11: =+IF(Reisekostenabrechnung!K17="ja",Reisekostenabrechnung!$H17*-0.2,0) -> 0 | D11: =+IF(Reisekostenabrechnung!L17="ja",Reisekostenabrechnung!$H17*-0.4,0) -> 0 | E11: =+IF(Reisekostenabrechnung!M17="ja",Reisekostenabrechnung!$H17*-0.4,0) -> 0 | F11: 00:00:00
C12: =+IF(Reisekostenabrechnung!K20="ja",Reisekostenabrechnung!$H20*-0.2,0) -> 0 | D12: =+IF(Reisekostenabrechnung!L20="ja",Reisekostenabrechnung!$H20*-0.4,0) -> 0 | E12: =+IF(Reisekostenabrechnung!M20="ja",Reisekostenabrechnung!$H20*-0.4,0) -> 0 | F12: 00:00:00
C13: =+IF(Reisekostenabrechnung!K21="ja",Reisekostenabrechnung!$H21*-0.2,0) -> 0 | D13: =+IF(Reisekostenabrechnung!L21="ja",Reisekostenabrechnung!$H21*-0.4,0) -> 0 | E13: =+IF(Reisekostenabrechnung!M21="ja",Reisekostenabrechnung!$H21*-0.4,0) -> 0 | F13: 00:00:00
C14: =+IF(Reisekostenabrechnung!K23="ja",Reisekostenabrechnung!$H23*-0.2,0) -> 0 | D14: =+IF(Reisekostenabrechnung!L23="ja",Reisekostenabrechnung!$H23*-0.4,0) -> 0 | E14: =+IF(Reisekostenabrechnung!M23="ja",Reisekostenabrechnung!$H23*-0.4,0) -> 0 | F14: 00:00:00
C15: =+IF(Reisekostenabrechnung!K24="ja",Reisekostenabrechnung!$H24*-0.2,0) -> 0 | D15: =+IF(Reisekostenabrechnung!L24="ja",Reisekostenabrechnung!$H24*-0.4,0) -> 0 | E15: =+IF(Reisekostenabrechnung!M24="ja",Reisekostenabrechnung!$H24*-0.4,0) -> 0 | F15: 00:00:00
C16: =+IF(Reisekostenabrechnung!K25="ja",Reisekostenabrechnung!$H25*-0.2,0) -> 0 | D16: =+IF(Reisekostenabrechnung!L25="ja",Reisekostenabrechnung!$H25*-0.4,0) -> 0 | E16: =+IF(Reisekostenabrechnung!M25="ja",Reisekostenabrechnung!$H25*-0.4,0) -> 0 | F16: 00:00:00
C17: =+IF(Reisekostenabrechnung!#REF!="ja",Reisekostenabrechnung!#REF!*-0.2,0) ->  | D17: =+IF(Reisekostenabrechnung!#REF!="ja",Reisekostenabrechnung!#REF!*-0.4,0) ->  | E17: =+IF(Reisekostenabrechnung!#REF!="ja",Reisekostenabrechnung!#REF!*-0.4,0) -> 
C18: =+IF(Reisekostenabrechnung!#REF!="ja",Reisekostenabrechnung!#REF!*-0.2,0) ->  | D18: =+IF(Reisekostenabrechnung!#REF!="ja",Reisekostenabrechnung!#REF!*-0.4,0) ->  | E18: =+IF(Reisekostenabrechnung!#REF!="ja",Reisekostenabrechnung!#REF!*-0.4,0) -> 
C19: =+IF(Reisekostenabrechnung!#REF!="ja",Reisekostenabrechnung!#REF!*-0.2,0) ->  | D19: =+IF(Reisekostenabrechnung!#REF!="ja",Reisekostenabrechnung!#REF!*-0.4,0) ->  | E19: =+IF(Reisekostenabrechnung!#REF!="ja",Reisekostenabrechnung!#REF!*-0.4,0) -> 
C20: =+IF(Reisekostenabrechnung!#REF!="ja",Reisekostenabrechnung!#REF!*-0.2,0) ->  | D20: =+IF(Reisekostenabrechnung!#REF!="ja",Reisekostenabrechnung!#REF!*-0.4,0) ->  | E20: =+IF(Reisekostenabrechnung!#REF!="ja",Reisekostenabrechnung!#REF!*-0.4,0) -> 
C21: =+IF(Reisekostenabrechnung!#REF!="ja",Reisekostenabrechnung!#REF!*-0.2,0) ->  | D21: =+IF(Reisekostenabrechnung!#REF!="ja",Reisekostenabrechnung!#REF!*-0.4,0) ->  | E21: =+IF(Reisekostenabrechnung!#REF!="ja",Reisekostenabrechnung!#REF!*-0.4,0) -> 
C22: =+IF(Reisekostenabrechnung!#REF!="ja",Reisekostenabrechnung!#REF!*-0.2,0) ->  | D22: =+IF(Reisekostenabrechnung!#REF!="ja",Reisekostenabrechnung!#REF!*-0.4,0) ->  | E22: =+IF(Reisekostenabrechnung!#REF!="ja",Reisekostenabrechnung!#REF!*-0.4,0) -> 
C23: =+IF(Reisekostenabrechnung!#REF!="ja",Reisekostenabrechnung!#REF!*-0.2,0) ->  | D23: =+IF(Reisekostenabrechnung!#REF!="ja",Reisekostenabrechnung!#REF!*-0.4,0) ->  | E23: =+IF(Reisekostenabrechnung!#REF!="ja",Reisekostenabrechnung!#REF!*-0.4,0) -> 
C24: =+IF(Reisekostenabrechnung!#REF!="ja",Reisekostenabrechnung!#REF!*-0.2,0) ->  | D24: =+IF(Reisekostenabrechnung!#REF!="ja",Reisekostenabrechnung!#REF!*-0.4,0) ->  | E24: =+IF(Reisekostenabrechnung!#REF!="ja",Reisekostenabrechnung!#REF!*-0.4,0) -> 
A28: Kürzungspauschalen Inland
A29: max. Erstattung: | B29: =data_fill!D3 -> 28
A30: Frühstück | B30: =$B$29*20/100 -> 5.6
A31: Mittag | B31: =$B$29*40/100 -> 11.2
A32: Abend | B32: =$B$29*40/100 -> 11.2
A35: Kilometerpauschale | B35: 0.3
A37: Januar
A38: Februar
A39: März
A40: April
A41: Mai
A42: Juni
A43: Juli
A44: August
A45: September
A46: Oktober
A47: November
A48: Dezember
